bitfinex-derivatives/quotes_SOLF0:USTF0_20250909
["timestamp","ask_amount","ask_price","bid_price","bid_amount"]
[1757426567660,16.45197328,217.24,216.92,7.36]
[1757426567851,0.18,217.27,216.83,13.8]
[1757426567852,176.60558011,217.41,217.03,16.45197328]
[1757426568153,176.60558011,217.41,217.17,7.36]
[1757426568350,176.60558011,217.41,217.2,7.36]
[1757426568555,166.52,217.5,217.2,7.36]
[1757426568955,0.18,217.49,217.26,7.36]
[1757426569156,0.18,217.46,217.19,309.86]
[1757426569356,16.45197328,217.43,217.18,7.36]
[1757426569654,16.45197328,217.43,217.11,16.45197328]
[1757426569655,0.18,217.35,217.11,7.36]
[1757426569848,0.18,217.33,217.11,7.36]
[1757426570053,18.0,217.34,217.05,7.36]
[1757426570247,16.45197328,217.3,216.63,16.45197328]
[1757426570452,16.45197328,217.24,216.97,7.36]
[1757426570649,0.18,217.23,216.97,7.36]
[1757426570847,0.18,217.21,216.97,7.36]
[1757426571048,16.45197328,217.18,216.9,7.36]
[1757426571247,433.74,217.17,216.9,7.36]
[1757426571455,0.18,217.16,216.9,7.36]
[1757426571650,0.18,217.11,216.86,309.76]
[1757426571850,0.18,217.09,216.86,309.76]
[1757426572249,0.18,217.05,216.86,309.76]
[1757426572453,0.18,217.05,216.83,7.36]
[1757426572849,16.45197328,217.06,216.83,7.36]
[1757426573046,0.18,216.99,216.76,7.36]
[1757426573257,16.45197328,217.0,216.76,7.36]
[1757426573258,0.18,216.97,216.76,7.36]
[1757426573455,0.18,216.93,216.7,0.80228698]
[1757426573647,0.18,216.92,216.7,0.80228698]
[1757426573847,0.18,216.93,216.7,0.80228698]
[1757426574058,16.63197328,216.93,216.69,7.36]
[1757426574254,16.45197328,216.93,216.69,7.36]
[1757426574451,0.18,216.86,216.66,0.80296266]
[1757426574755,0.18,216.85,216.63,7.36]
[1757426574963,0.18,216.82,216.63,7.36]
[1757426575148,323.54,217.0,216.63,7.36]
[1757426575455,0.18,216.93,216.65,7.36]
[1757426575657,0.18,216.93,216.67,23.81197328]
[1757426575857,0.18,216.93,216.69,7.36]
[1757426576461,16.63197328,216.93,216.69,7.36]
[1757426578163,124.0,216.92,216.69,7.36]
[1757426578358,16.63197328,216.93,216.69,7.36]
[1757426578556,16.45197328,216.93,216.69,7.36]
[1757426578759,0.18,217.02,216.71,7.36]
[1757426579564,0.18,217.02,216.73,7.36]
[1757426580163,0.18,217.02,216.75,7.36]
[1757426580360,16.45197328,217.16,216.85,7.36]
[1757426580559,16.45197328,217.21,216.91,7.36]
[1757426580766,0.18,217.25,216.86,53.6]
[1757426580767,0.18,217.25,216.95,7.36]
[1757426580969,0.18,217.25,217.0,16.45197328]
[1757426581159,309.92,217.32,217.08,7.36]
[1757426581356,178.36404323,217.33,217.1,7.36]
[1757426581561,178.36404323,217.33,217.11,64.4784]
[1757426581761,0.18,217.42,217.16,7.36]
[1757426581957,64.3931,217.4,217.16,7.36]
[1757426582169,64.4069,217.36,217.16,7.36]
[1757426582360,64.4069,217.36,217.09,7.36]
[1757426582361,0.18,217.35,217.09,7.36]
[1757426582756,64.4069,217.36,217.09,7.36]
[1757426582958,0.18,217.31,217.09,7.36]
[1757426583260,0.18,217.3,217.02,317.22]
[1757426583457,0.18,217.25,217.02,317.22]
[1757426583861,0.18,217.25,216.94,7.36]
[1757426584063,0.18,217.2,216.94,7.36]
[1757426584267,0.18,217.2,216.96,7.36]
[1757426584462,124.0,217.19,216.96,7.36]
[1757426584967,16.63197328,217.2,216.96,7.36]
[1757426585268,124.0,217.19,216.96,7.36]
[1757426586665,0.18,217.14,216.85,6.98]
[1757426586865,0.18,217.14,216.86,7.36]
[1757426587370,0.18,217.12,216.86,7.36]
[1757426587769,16.45197328,217.09,216.86,7.36]
[1757426587971,0.18,217.08,216.86,7.36]
[1757426588272,124.0,217.07,216.86,7.36]
[1757426588870,0.18,217.08,216.86,7.36]
[1757426589374,124.0,217.07,216.86,7.36]
[1757426589775,0.18,217.08,216.86,7.36]
[1757426589975,165.1,217.12,216.86,7.36]
[1757426590175,124.0,217.11,216.86,7.36]
[1757426590373,0.18,217.1,216.86,7.36]
[1757426590974,16.63197328,217.1,216.86,7.36]
[1757426591168,124.0,217.09,216.86,7.36]
[1757426591577,0.18,217.08,216.86,7.36]
[1757426591878,0.18,217.03,216.77,7.36]
[1757426592380,0.18,216.97,216.77,7.36]
[1757426594784,309.78,217.0,216.77,7.36]
[1757426594988,0.2,216.99,216.77,7.36]
[1757426596085,0.2,216.97,216.77,7.36]
[1757426596384,473.08,217.0,216.7,7.46]
[1757426596385,0.2,216.91,216.7,7.46]
[1757426596589,163.1,216.9,216.7,7.46]
[1757426596890,163.1,216.9,216.61,7.46]
[1757426597084,0.2,216.85,216.61,7.46]
[1757426598591,310.1,216.85,216.61,7.46]
[1757426598782,0.2,216.79,216.54,317.34]
[1757426598981,16.45197328,216.68,216.41,7.46]
[1757426599182,0.2,216.61,216.32,7.46]
[1757426599382,0.2,216.56,216.32,7.46]
[1757426599581,286.26,216.55,216.39,0.80395509]
[1757426599791,162.36,216.54,216.32,7.46]
[1757426599991,16.45197328,216.49,216.19,7.46]
[1757426600193,16.45197328,216.49,216.29,0.80432672]
[1757426600387,15.08,216.5,216.3,7.46]
[1757426600584,0.2,216.53,216.3,7.46]
[1757426600786,309.94,216.57,216.3,7.46]
[1757426601187,0.2,216.56,216.3,7.46]
[1757426601385,179.59197328,216.55,216.32,7.46]
[1757426601584,124.0,216.58,216.32,7.46]
[1757426601789,0.2,216.62,216.38,7.46]
[1757426601993,16.45197328,216.58,216.38,7.46]
[1757426602287,16.45197328,216.58,216.32,0.80416874]
[1757426602288,15.4,216.66,216.43,7.46]
[1757426602487,0.2,216.65,216.43,7.46]
[1757426602792,124.0,216.64,216.43,7.46]
[1757426603098,310.08,216.7,216.44,7.46]
[1757426603388,310.08,216.7,216.51,7.46]
[1757426603593,310.28,216.7,216.51,7.46]
[1757426603796,310.08,216.7,216.51,7.46]
[1757426604292,0.2,216.69,216.51,7.46]
[1757426604488,16.45197328,216.69,216.4,7.46]
[1757426604692,310.08,216.7,216.44,7.46]
[1757426605397,0.2,216.76,216.5,7.46]
[1757426605591,16.45197328,216.75,216.52,7.46]
[1757426605793,0.2,216.74,216.52,7.46]
[1757426606496,16.45197328,216.75,216.52,7.46]
[1757426606788,16.45197328,216.75,216.49,310.2]
[1757426606789,0.2,216.82,216.56,7.46]
[1757426606985,0.2,216.82,216.59,4.1549]
[1757426607188,0.2,216.82,216.56,7.46]
[1757426607587,178.67197328,216.81,216.56,11.6154]
[1757426607786,178.67197328,216.81,216.56,7.46]
[1757426608194,16.45197328,216.81,216.56,7.46]
[1757426608496,0.2,216.82,216.56,7.46]
[1757426608796,0.2,216.82,216.56,6.82]
[1757426609095,0.2,216.82,216.57,7.46]
[1757426609394,0.2,216.79,216.57,7.46]
[1757426609589,16.45197328,216.8,216.57,7.46]
[1757426609794,0.2,216.78,216.5,7.46]
[1757426609992,124.0,216.77,216.5,7.46]
[1757426610198,0.2,216.73,216.5,7.46]
[1757426610497,161.66,216.72,216.5,7.46]
[1757426610692,161.64,216.72,216.5,7.46]
[1757426610989,147.3,216.76,216.49,7.46]
[1757426611194,0.2,216.8,216.55,7.46]
[1757426611390,0.18,216.85,216.56,7.46]
[1757426611595,0.18,216.85,216.61,7.46]
[1757426611596,0.2,216.84,216.61,7.46]
[1757426611796,0.18,216.85,216.61,7.46]
[1757426611797,0.2,216.82,216.61,7.46]
[1757426612194,161.32,216.81,216.61,7.46]
[1757426612395,0.2,216.82,216.61,7.46]
[1757426612794,173.42380316,216.86,216.61,7.46]
[1757426613197,173.42380316,216.86,216.65,4.1537]
[1757426613491,173.42380316,216.86,216.66,7.46]
[1757426613796,0.2,216.85,216.66,7.46]
[1757426615497,0.2,216.85,216.67,4.1533]
[1757426615699,0.2,216.85,216.66,7.46]
[1757426616200,0.2,216.85,216.66,11.6134]
[1757426616595,0.2,216.85,216.66,7.46]
[1757426616799,0.2,216.86,216.59,7.46]
[1757426616998,28.07339319,216.85,216.59,7.46]
[1757426617201,0.2,216.83,216.59,7.46]
[1757426617699,28.07339319,216.85,216.59,7.46]
[1757426617905,0.2,216.81,216.51,7.46]
[1757426618403,0.2,216.79,216.51,7.46]
[1757426618600,0.2,216.77,216.51,7.46]
[1757426618802,0.2,216.75,216.51,7.46]
[1757426619806,159.71339319,216.76,216.51,7.46]
[1757426620004,159.71339319,216.76,216.41,7.46]
[1757426620005,28.07339319,216.69,216.41,7.46]
[1757426620307,25.16,216.68,216.43,7.46]
[1757426620501,0.2,216.68,216.43,7.46]
[1757426620696,0.2,216.68,216.48,7.46]
[1757426621298,47.32,216.71,216.52,7.46]
[1757426622006,0.2,216.74,216.52,7.46]
[1757426622603,0.2,216.72,216.52,7.46]
[1757426622998,158.52,216.71,216.52,7.46]
[1757426623198,158.7,216.72,216.52,7.46]
[1757426623407,158.44,216.73,216.47,7.46]
[1757426623607,0.21,216.72,216.47,7.46]
[1757426623901,0.21,216.72,216.47,7.42]
[1757426624401,0.21,216.72,216.5,4.1565]
[1757426624596,0.21,216.72,216.47,7.42]
[1757426625007,0.2,216.72,216.47,7.42]
[1757426625204,158.44,216.73,216.47,7.42]
[1757426625408,28.07339319,216.69,216.47,7.42]
[1757426625905,28.07339319,216.69,216.39,311.02367659]
[1757426626107,0.2,216.68,216.4,7.42]
[1757426626305,41.87339319,216.69,216.4,7.42]
[1757426626709,0.2,216.61,216.12,7.42]
[1757426626911,0.2,216.54,216.27,0.80418732]
[1757426627107,28.07339319,216.48,216.27,0.80418732]
[1757426627406,0.2,216.46,216.25,7.42]
[1757426627717,0.2,216.46,216.25,11.5814]
[1757426627913,128.6,216.45,216.26,7.42]
[1757426628212,310.36,216.44,216.26,7.42]
[1757426628406,0.2,216.43,216.26,7.42]
[1757426628605,157.76,216.43,216.26,7.42]
[1757426628813,0.2,216.43,216.26,7.42]
[1757426629010,157.68,216.43,216.26,7.42]
[1757426629213,157.4,216.42,216.26,7.42]
[1757426629515,157.28,216.41,216.26,7.42]
[1757426629701,157.36,216.42,216.26,7.42]
[1757426630103,0.2,216.43,216.26,7.42]
[1757426630308,310.36,216.44,216.26,7.42]
[1757426631012,0.2,216.5,216.31,7.42]
[1757426631611,185.29339319,216.53,216.31,7.42]
[1757426631809,185.29339319,216.53,216.2,7.42]
[1757426632009,0.2,216.45,216.2,7.42]
[1757426632407,24.58,216.44,216.2,7.42]
[1757426632609,0.2,216.42,216.2,7.42]
[1757426632811,45.94,216.41,216.2,7.42]
[1757426633217,310.72,216.42,216.2,7.42]
[1757426633413,157.74,216.41,216.2,7.42]
[1757426633709,310.72,216.42,216.2,7.42]
[1757426633914,157.62,216.41,216.2,7.42]
[1757426634321,28.07339319,216.38,216.04,7.42]
[1757426634720,24.74,216.37,216.1,0.80513621]
[1757426635015,0.2,216.35,216.03,30.61622509]
[1757426635216,13.8,216.36,216.03,30.61622509]
[1757426635217,0.2,216.24,216.03,30.61622509]
[1757426635425,329.36,216.23,216.03,30.61622509]
[1757426635721,0.2,216.21,216.03,23.19622509]
[1757426636109,162.96,216.2,216.04,7.42]
[1757426636311,0.2,216.21,216.04,7.42]
[1757426636514,473.94,216.23,216.04,7.42]
[1757426636722,0.2,216.22,216.04,7.42]
[1757426637021,0.2,216.28,216.04,7.42]
[1757426637321,0.2,216.29,216.04,7.42]
[1757426637817,0.2,216.29,216.07,4.1648]
[1757426638015,148.28,216.32,216.08,7.42]
[1757426638411,148.28,216.32,216.1,7.42]
[1757426638919,176.35339319,216.32,216.1,7.42]
[1757426639121,0.2,216.31,216.04,7.42]
[1757426639315,176.35339319,216.32,216.04,7.42]
[1757426639517,0.2,216.3,216.04,7.42]
[1757426639716,0.2,216.24,216.04,7.42]
[1757426640313,28.07339319,216.24,216.03,23.19622509]
[1757426640514,0.2,216.16,216.03,23.19622509]
[1757426640720,28.07339319,216.1,215.83,7.42]
[1757426641027,27.28,216.09,215.92,0.80548097]
[1757426641320,27.28,216.09,215.83,7.42]
[1757426641722,51.68,216.08,215.83,7.42]
[1757426642123,124.0,216.07,215.83,7.42]
[1757426642722,116.9,216.09,215.84,7.42]
[1757426642922,310.78,216.15,215.84,7.42]
[1757426643126,28.07339319,216.2,215.84,7.42]
[1757426643320,28.07339319,216.2,215.98,7.42]
[1757426643522,28.07339319,216.33,215.98,7.42]
[1757426643927,1643.4,216.39,215.98,7.42]
[1757426643928,1332.5,216.39,215.98,7.42]
[1757426644225,28.07339319,216.39,216.0,35.49339319]
[1757426644431,0.80554623,216.33,216.14,7.42]
[1757426644632,194.99339319,216.41,216.14,7.42]
[1757426645022,0.80517347,216.38,216.14,7.42]
[1757426645425,194.99339319,216.41,216.14,7.42]
[1757426645632,124.0,216.4,216.0,310.94]
[1757426645829,28.07339319,216.34,216.01,7.42]
[1757426646330,44.18,216.4,216.06,7.42]
[1757426646531,28.07339319,216.39,216.09,7.42]
[1757426647030,169.22,216.41,216.2,4.1623]
[1757426647327,173.5434839,216.46,216.21,28.07339319]
[1757426647528,339.01339319,216.59,216.37,4.1592]
[1757426647728,310.94,216.59,216.38,7.42]
[1757426648130,310.94,216.59,216.22,339.01339319]
[1757426648131,310.94,216.59,216.25,7.42]
[1757426648327,28.07339319,216.57,216.25,7.42]
[1757426648732,28.07339319,216.58,216.25,7.42]
[1757426648931,164.34,216.56,216.25,7.42]
[1757426649230,28.07339319,216.5,216.25,7.42]
[1757426649633,310.94,216.59,216.25,7.42]
[1757426649828,28.07339319,216.54,216.25,7.42]
[1757426650536,43.52,216.58,216.25,7.42]
[1757426650732,169.66,216.58,216.25,7.42]
[1757426651037,28.07339319,216.54,216.25,7.42]
[1757426651232,169.66,216.58,216.28,7.42]
[1757426651941,310.94,216.59,216.28,7.42]
[1757426652138,169.48,216.58,216.28,7.42]
[1757426652834,310.94,216.59,216.28,7.42]
[1757426653033,169.4,216.58,216.28,7.42]
[1757426654341,310.94,216.59,216.35,7.21]
[1757426654342,169.2,216.57,216.35,7.21]
[1757426654641,310.94,216.59,216.35,7.21]
[1757426655736,315.82884063,216.8,216.4,7.21]
[1757426655942,310.8,216.8,216.42,7.21]
[1757426656143,310.8,216.8,216.47,7.21]
[1757426656144,169.18,216.79,216.47,7.21]
[1757426656338,124.0,216.78,216.47,7.21]
[1757426656538,124.0,216.78,216.55,7.21]
[1757426657046,124.0,216.78,216.41,310.8]
[1757426657336,28.07339319,216.76,216.48,7.21]
[1757426657633,169.18,216.79,216.48,7.21]
[1757426657839,28.07339319,216.73,216.48,7.21]
[1757426658036,62.84,216.72,216.48,7.21]
[1757426658240,124.0,216.75,216.48,7.21]
[1757426658448,292.5,216.75,216.48,7.21]
[1757426659139,28.07339319,216.74,216.48,7.21]
[1757426659940,292.5,216.75,216.48,7.21]
[1757426660238,168.2,216.74,216.49,7.21]
[1757426660936,28.07339319,216.73,216.43,4.03192923]
[1757426661142,28.07339319,216.73,216.42,11.3682]
[1757426661339,28.07339319,216.73,216.44,7.21]
[1757426661542,166.8,216.72,216.46,7.21]
[1757426661738,166.8,216.72,216.49,7.21]
[1757426663546,167.16,216.71,216.49,7.21]
[1757426663745,167.14,216.7,216.49,7.21]
[1757426664245,167.14,216.7,216.5,4.04102925]
[1757426664435,28.07339319,216.73,216.51,4.04102925]
[1757426664640,166.86,216.72,216.52,4.04102925]
[1757426664839,166.86,216.72,216.49,7.21]
[1757426665039,166.86,216.72,216.5,4.04093806]
[1757426665235,166.86,216.72,216.43,7.21]
[1757426665436,166.86,216.72,216.44,4.04069708]
[1757426665640,167.66381582,216.72,216.45,4.04069708]
[1757426665945,167.66381582,216.72,216.46,4.04069708]
[1757426666145,166.86,216.72,216.47,4.04069708]
[1757426666342,166.86,216.72,216.48,4.04069708]
[1757426666643,166.86,216.72,216.44,4.04180857]
[1757426666644,180.66,216.72,216.44,4.04180857]
[1757426666834,28.07339319,216.66,216.45,4.04187978]
[1757426667041,310.56,216.65,216.46,4.04187978]
[1757426667343,310.56,216.65,216.43,7.21]
[1757426667344,310.56,216.65,216.44,4.1578]
[1757426667539,310.56,216.65,216.45,4.04287848]
[1757426667744,165.9,216.64,216.46,15.41027848]
[1757426668045,310.56,216.65,216.47,4.04285442]
[1757426668242,310.56,216.65,216.48,8.19971546]
[1757426668442,310.56,216.65,216.49,7.21]
[1757426668937,310.56,216.65,216.39,7.21]
[1757426669241,310.56,216.65,216.41,7.21]
[1757426669444,310.56,216.65,216.42,4.04323025]
[1757426669740,310.56,216.65,216.43,4.04323025]
[1757426669945,310.56,216.65,216.44,4.04323025]
[1757426670150,310.56,216.65,216.45,4.04323025]
[1757426670345,310.56,216.65,216.46,4.04323025]
[1757426670549,310.56,216.65,216.41,7.21]
[1757426670751,310.56,216.65,216.42,4.0445873]
[1757426670951,310.56,216.65,216.41,7.21]
[1757426671348,310.56,216.65,216.42,4.04550797]
[1757426671554,310.56,216.65,216.41,7.21]
[1757426671752,310.56,216.65,216.42,4.04550866]
[1757426671951,310.56,216.65,216.41,7.21]
[1757426672151,310.56,216.65,216.42,4.04519695]
[1757426672354,310.56,216.65,216.43,4.04519695]
[1757426672549,310.56,216.65,216.44,4.04438658]
[1757426672754,310.56,216.65,216.45,4.0443099]
[1757426672949,310.56,216.65,216.47,7.21]
[1757426673144,164.0,216.64,216.48,4.0440375]
[1757426673350,164.0,216.64,216.47,7.21]
[1757426673551,164.0,216.64,216.48,4.04241519]
[1757426673854,474.5,216.65,216.49,4.04232354]
[1757426674050,474.5,216.65,216.5,4.04232354]
[1757426674258,310.56,216.65,216.52,7.21]
[1757426674553,124.0,216.75,216.57,11.3653]
[1757426674754,310.54,216.8,216.57,7.21]
[1757426674950,163.62,216.79,216.58,4.0383617]
[1757426675150,163.62,216.79,216.49,7.21]
[1757426675151,16.52686255,216.77,216.49,7.21]
[1757426675450,16.52686255,216.77,216.5,4.03851578]
[1757426675656,16.52686255,216.71,216.51,4.03851578]
[1757426675861,163.5,216.7,216.49,7.21]
[1757426676059,163.5,216.7,216.5,4.03782104]
[1757426676257,124.0,216.69,216.49,7.21]
[1757426676555,163.08,216.68,216.5,4.03659066]
[1757426676751,163.08,216.67,216.52,7.21]
[1757426677757,163.08,216.67,216.45,317.75]
[1757426678060,163.08,216.67,216.47,7.21]
[1757426678261,163.08,216.67,216.49,7.21]
[1757426678559,163.08,216.67,216.5,4.03538713]
[1757426678761,124.0,216.74,216.52,7.21]
[1757426678955,162.5,216.73,216.53,4.03388427]
[1757426679162,16.52686255,216.69,216.46,7.21]
[1757426679357,16.52686255,216.69,216.47,4.0334955]
[1757426679551,16.52686255,216.69,216.46,7.21]
[1757426679751,16.52686255,216.69,216.47,4.03377831]
[1757426679958,16.52686255,216.69,216.49,4.1568]
[1757426680252,16.52686255,216.69,216.51,7.21]
[1757426680555,124.66,216.72,216.51,7.21]
[1757426680763,124.66,216.72,216.53,7.21]
[1757426680964,16.52686255,216.79,216.55,7.21]
[1757426681166,310.54,216.8,216.57,7.21]
[1757426681360,310.54,216.8,216.59,7.21]
[1757426681564,162.0,216.79,216.61,7.21]
[1757426682369,178.52686255,216.79,216.52,7.21]
[1757426682569,178.52686255,216.79,216.54,7.21]
[1757426682771,178.52686255,216.79,216.55,4.02966288]
[1757426682977,178.52686255,216.79,216.56,4.02966288]
[1757426683170,124.0,216.78,216.54,7.21]
[1757426684063,124.0,216.78,216.56,7.49]
[1757426684265,161.46,216.77,216.57,4.03328937]
[1757426684469,161.46,216.77,216.58,4.03328937]
[1757426684668,161.46,216.77,216.56,7.49]
[1757426685571,16.52686255,216.74,216.5,7.49]
[1757426686378,16.52686255,216.74,216.52,7.49]
[1757426686379,161.16,216.73,216.52,7.49]
[1757426686573,124.0,216.78,216.55,7.49]
[1757426686771,161.1,216.77,216.57,7.49]
[1757426686971,161.1,216.77,216.62,4.1543]
[1757426687171,161.1,216.77,216.64,7.49]
[1757426687377,161.1,216.77,216.53,7.49]
[1757426687571,161.1,216.77,216.54,4.04674269]
[1757426687771,161.1,216.77,216.55,4.04674269]
[1757426687971,161.1,216.77,216.57,7.49]
[1757426688272,161.1,216.77,216.58,4.04674269]
[1757426688477,161.1,216.77,216.59,4.04674269]
[1757426688767,161.1,216.77,216.6,4.04674269]
[1757426688974,161.1,216.77,216.61,4.04674269]
[1757426689279,161.1,216.77,216.62,4.04674269]
[1757426689475,161.1,216.77,216.63,4.04674269]
[1757426689673,160.74,216.76,216.57,7.49]
[1757426689877,160.74,216.76,216.58,4.07021728]
[1757426690072,160.74,216.76,216.59,11.56021728]
[1757426690272,160.74,216.76,216.6,4.07021728]
[1757426690576,160.74,216.76,216.61,4.07021728]
[1757426690776,6.36503043,216.73,216.62,4.07021728]
[1757426690978,6.36503043,216.73,216.63,4.07021728]
[1757426691275,6.36503043,216.69,216.53,7.49]
[1757426691467,316.90503043,216.8,216.54,4.08601115]
[1757426691468,6.36503043,216.65,216.54,4.08601115]
[1757426691672,164.76503043,216.65,216.55,4.08601115]
[1757426691872,164.76503043,216.65,216.56,4.08601115]
[1757426692072,164.76503043,216.65,216.57,4.08601115]
[1757426692370,164.76503043,216.65,216.58,4.08601115]
[1757426692567,164.76503043,216.65,216.59,4.08601115]
[1757426692767,6.36503043,216.65,216.6,4.08601115]
[1757426692968,159.7,216.66,216.61,4.08601115]
[1757426693168,166.06503043,216.66,216.47,7.49]
[1757426693371,166.06503043,216.66,216.48,4.09702911]
[1757426693572,166.06503043,216.66,216.49,4.09702911]
[1757426693778,166.06503043,216.66,216.5,4.09702911]
[1757426693979,166.06503043,216.66,216.51,4.09702911]
[1757426694184,159.54,216.65,216.52,4.09702911]
[1757426694380,159.54,216.65,216.53,4.09702911]
[1757426694381,6.36503043,216.62,216.53,4.09702911]
[1757426694680,6.36503043,216.62,216.47,7.49]
[1757426694681,6.36503043,216.62,216.54,4.09702911]
[1757426694976,6.36503043,216.62,216.55,4.09702911]
[1757426695176,6.36503043,216.62,216.41,310.38]
[1757426695177,6.36503043,216.58,216.41,317.87]
[1757426695483,141.84,216.6,216.43,7.49]
[1757426695679,6.36503043,216.61,216.44,4.10581501]
[1757426695878,145.34503043,216.61,216.45,4.10581501]
[1757426696077,145.34503043,216.61,216.46,4.10581501]
[1757426696279,6.36503043,216.61,216.47,4.10581501]
[1757426696480,6.36503043,216.61,216.48,4.10581501]
[1757426696686,6.36503043,216.61,216.49,4.10581501]
[1757426696878,6.36503043,216.64,216.5,4.10581501]
[1757426697084,6.36503043,216.64,216.51,4.10581501]
[1757426697284,24.4,216.67,216.52,4.10581501]
[1757426697486,24.4,216.67,216.53,4.10581501]
[1757426697787,24.4,216.67,216.54,4.10581501]
[1757426697982,24.4,216.67,216.55,4.10581501]
[1757426698183,24.4,216.67,216.56,4.10581501]
[1757426698382,56.28503043,216.67,216.57,4.10581501]
[1757426698583,56.28503043,216.67,216.58,4.10581501]
[1757426698783,56.28503043,216.67,216.59,4.10581501]
[1757426698982,56.28503043,216.67,216.48,7.49]
[1757426699178,6.36503043,216.63,216.48,7.49]
[1757426699588,6.36503043,216.61,216.48,7.49]
[1757426700082,6.36503043,216.62,216.48,7.49]
[1757426700385,5.02884063,216.67,216.52,7.49]
[1757426700588,5.02884063,216.76,216.56,7.49]
[1757426700788,6.36503043,216.79,216.6,4.1546]
[1757426701089,6.36503043,216.79,216.61,7.49]
[1757426701386,6.36503043,216.79,216.62,4.1544]
[1757426701690,5.02884063,216.81,216.61,7.49]
[1757426701882,6.36503043,216.79,216.61,7.49]
[1757426702280,6.36503043,216.75,216.54,7.9535235]
[1757426702590,129.02884063,216.81,216.56,6.36503043]
[1757426702790,6.36503043,216.74,216.57,7.49]
[1757426703691,5.02884063,216.79,216.57,7.49]
[1757426703880,6.36503043,216.73,216.57,7.49]
[1757426704084,6.36503043,216.75,216.57,7.49]
[1757426704786,6.36503043,216.71,216.51,7.49]
[1757426705490,5.02884063,216.74,216.55,7.49]
[1757426705686,6.36503043,216.78,216.57,6.36503043]
[1757426705988,6.36503043,216.8,216.58,7.49]
[1757426706188,16.68,216.81,216.62,7.49]
[1757426706384,6.36503043,216.79,216.62,7.49]
[1757426706891,21.70884063,216.81,216.62,7.49]
[1757426706892,23.04503043,216.81,216.62,7.49]
[1757426707087,16.68,216.81,216.62,7.49]
[1757426707788,6.36503043,216.79,216.62,7.49]
[1757426708685,157.72,216.82,216.62,7.49]
[1757426708890,6.36503043,216.83,216.62,7.49]
[1757426709287,5.02884063,216.86,216.62,7.49]
[1757426709492,157.56,216.86,216.66,7.49]
[1757426709885,6.36503043,216.83,216.66,7.49]
[1757426710393,6.36503043,216.79,216.66,7.49]
[1757426710591,6.36503043,216.79,216.57,7.49]
[1757426710788,6.36503043,216.79,216.56,310.36]
[1757426711093,6.36503043,216.79,216.59,7.49]
[1757426711493,58.1,216.81,216.59,7.49]
[1757426711696,6.36503043,216.8,216.59,7.49]
[1757426711891,6.36503043,216.76,216.59,7.49]
[1757426712494,124.0,216.8,216.59,11.6449]
[1757426712800,280.56,216.8,216.6,7.49]
[1757426712992,280.56,216.8,216.62,4.1543]